fUSD/lending_fUSD_20250112
["ID","MTS","AMOUNT","RATE_DAILY","PERIOD"]
[348656201,1736700654913,-500.0,9.82e-05,2]
[348656202,1736700654922,-995.77,9.82e-05,2]
[348656203,1736700654932,-3146.03,9.82e-05,2]
[348656204,1736700654941,-2710.65,9.82e-05,2]
[348656205,1736700654952,-218.29873743,9.82e-05,2]
[348656206,1736700654962,-500.0,9.82e-05,2]
[348656207,1736700654972,-1355.79,9.82e-05,2]
[348656208,1736700654982,-2113.09,9.82e-05,2]
[348656209,1736700654991,-1050.88,9.82e-05,2]
[348656210,1736700655001,-1415.81,9.82e-05,2]
[348656211,1736700655011,-520.74,9.82e-05,2]
[348656212,1736700655021,-1645.06,9.82e-05,2]
[348656213,1736700655031,-1033.91,9.82e-05,2]
[348656214,1736700655041,-500.0,9.82e-05,2]
[348656215,1736700655051,-1289.53,9.82e-05,2]
[348656216,1736700655062,-836.1,9.82e-05,2]
[348656217,1736700655072,-969.41,9.82e-05,2]
[348656218,1736700655082,-500.0,9.82e-05,2]
[348656219,1736700655094,-3093.34,9.82e-05,2]
[348656220,1736700655104,-594.39,9.82e-05,2]
[348656221,1736700655119,-856.24,9.82e-05,2]
[348656222,1736700655129,-2376.04,9.82e-05,2]
[348656223,1736700655139,-500.0,9.82e-05,2]
[348656224,1736700655149,-524.5,9.82e-05,2]
[348656225,1736700655160,-1899.09,9.82e-05,2]
[348656226,1736700655174,-708.5,9.82e-05,2]
[348656227,1736700655185,-1088.98,9.82e-05,2]
[348656228,1736700655196,-500.0,9.82e-05,2]
[348656229,1736700655207,-500.0,9.82e-05,2]
[348656230,1736700655218,-1299.49,9.82e-05,2]
[348656231,1736700655230,-925.99,9.82e-05,2]
[348656232,1736700655240,-640.31,9.82e-05,2]
[348656233,1736700655250,-3185.36,9.82e-05,2]
[348656234,1736700655260,-622.45,9.82e-05,2]
[348656235,1736700655270,-1827.76,9.82e-05,2]
[348656236,1736700655280,-606.95,9.82e-05,2]
[348656237,1736700655290,-545.89,9.82e-05,2]
[348656238,1736700655300,-786.14,9.82e-05,2]
[348656239,1736700655310,-833.22,9.82e-05,2]
[348656240,1736700655319,-1861.57,9.82e-05,2]
[348656241,1736700655329,-500.0,9.821e-05,2]
[348656242,1736700655340,-350.94602522,9.821e-05,2]
[348656243,1736700655350,-500.0,9.821e-05,2]
[348656244,1736700655360,-500.0,9.821e-05,2]
[348656245,1736700655371,-730.13,9.821e-05,2]
[348656246,1736700655382,-500.0,9.821e-05,2]
[348656247,1736700655393,-1651.99,9.821e-05,2]
[348656248,1736700655403,-500.0,9.821e-05,2]
[348656249,1736700655414,-1264.25,9.821e-05,2]
[348656250,1736700655424,-978.875677,9.821e-05,2]
[348656251,1736700655434,-500.0,9.821e-05,2]
[348656252,1736700655445,-500.0,9.821e-05,2]
[348656253,1736700655454,-500.0,9.821e-05,2]
[348656254,1736700655464,-500.0,9.821e-05,2]
[348656255,1736700655474,-500.0,9.821e-05,2]
[348656256,1736700655483,-3861.07,9.821e-05,2]
[348656257,1736700655493,-941.388041,9.821e-05,2]
[348656258,1736700655502,-500.0,9.821e-05,2]
[348656259,1736700655512,-944.82,9.821e-05,2]
[348656260,1736700655522,-155.371199,9.821e-05,2]
[348656261,1736700655532,-500.0,9.821e-05,2]
[348656262,1736700655541,-1010.28,9.821e-05,2]
[348656263,1736700655551,-500.0,9.821e-05,2]
[348656264,1736700655560,-597.28,9.821e-05,2]
[348656265,1736700655570,-500.0,9.821e-05,2]
[348656266,1736700655580,-366.77276196,9.821e-05,2]
[348656267,1736700655590,-500.0,9.821e-05,2]
[348656268,1736700655599,-508.32434252,9.821e-05,2]
[348656269,1736700655609,-978.99,9.821e-05,2]
[348656270,1736700655619,-574.1,9.821e-05,2]
[348656271,1736700655630,-500.0,9.821e-05,2]
[348656272,1736700655640,-500.0,9.821e-05,2]
[348656273,1736700655650,-500.0,9.821e-05,2]
[348656274,1736700655660,-155.371198,9.821e-05,2]
[348656275,1736700655670,-500.0,9.821e-05,2]
[348656276,1736700655681,-500.0,9.821e-05,2]
[348656277,1736700655693,-500.0,9.821e-05,2]
[348656278,1736700655704,-500.0,9.821e-05,2]
[348656279,1736700655716,-500.0,9.821e-05,2]
[348656280,1736700656022,-790.29,9.821e-05,2]
[348656281,1736700656032,-500.0,9.821e-05,2]
[348656282,1736700656043,-353.24201192,9.821e-05,2]
[348656283,1736700656053,-505.92600863,9.821e-05,2]
[348656284,1736700656064,-500.0,9.821e-05,2]
[348656285,1736700656073,-168.246032,9.821e-05,2]
[348656286,1736700656084,-586.07070144,9.821e-05,2]
[348656287,1736700656094,-500.0,9.821e-05,2]
[348656288,1736700656103,-826.32,9.821e-05,2]
[348656289,1736700656116,-816.75,9.821e-05,2]
[348656290,1736700656125,-500.0,9.821e-05,2]
[348656291,1736700656135,-500.0,9.821e-05,2]
[348656292,1736700656144,-500.0,9.821e-05,2]
[348656293,1736700656155,-625.83,9.821e-05,2]
[348656294,1736700656164,-655.22,9.821e-05,2]
[348656295,1736700656174,-500.0,9.821e-05,2]
[348656296,1736700656183,-500.0,9.821e-05,2]
[348656297,1736700656192,-500.0,9.821e-05,2]
[348656298,1736700656203,-3719.64,9.821e-05,2]
[348656299,1736700656212,-659.3,9.821e-05,2]
[348656300,1736700656221,-168.246029,9.821e-05,2]
[348656301,1736700656231,-500.0,9.821e-05,2]
[348656302,1736700656241,-500.0,9.821e-05,2]
[348656303,1736700656249,-500.0,9.821e-05,2]
[348656304,1736700656259,-155.371198,9.821e-05,2]
[348656305,1736700656269,-500.0,9.821e-05,2]
[348656306,1736700656279,-500.0,9.821e-05,2]
[348656307,1736700656289,-516.68,9.821e-05,2]
[348656308,1736700656299,-545.41081774,9.821e-05,2]
[348656309,1736700656308,-500.0,9.821e-05,2]
[348656310,1736700656318,-500.0,9.821e-05,2]
[348656311,1736700656327,-500.0,9.821e-05,2]
[348656312,1736700656336,-610.16,9.821e-05,2]
[348656313,1736700656346,-500.0,9.821e-05,2]
[348656314,1736700656355,-500.0,9.821e-05,2]
[348656315,1736700656365,-500.0,9.821e-05,2]
[348656316,1736700656375,-544.28,9.821e-05,2]
[348656317,1736700656384,-500.0,9.821e-05,2]
[348656318,1736700656398,-1214.34,9.821e-05,2]
[348656319,1736700656409,-553.68,9.821e-05,2]
[348656320,1736700656419,-815.64,9.821e-05,2]
[348656321,1736700656428,-684.62,9.821e-05,2]
[348656322,1736700656438,-500.0,9.821e-05,2]
[348656323,1736700656448,-500.0,9.821e-05,2]
[348656324,1736700656458,-500.0,9.821e-05,2]
[348656325,1736700656467,-241.74619702,9.821e-05,2]
[348656326,1736700656477,-932.52,9.821e-05,2]
[348656327,1736700656487,-500.0,9.821e-05,2]
[348656328,1736700656497,-500.0,9.821e-05,2]
[348656329,1736700656506,-625.7,9.821e-05,2]
[348656330,1736700656516,-500.0,9.821e-05,2]
[348656331,1736700656526,-721.16,9.821e-05,2]
[348656332,1736700656536,-797.42,9.821e-05,2]
[348656333,1736700656546,-168.24603,9.821e-05,2]
[348656334,1736700656556,-617.87,9.821e-05,2]
[348656335,1736700656566,-500.0,9.821e-05,2]
[348656336,1736700656576,-500.0,9.821e-05,2]
[348656337,1736700656586,-500.0,9.821e-05,2]
[348656338,1736700656595,-500.0,9.821e-05,2]
[348656339,1736700656605,-155.371198,9.821e-05,2]
[348656340,1736700656615,-779.4,9.821e-05,2]
[348656341,1736700656625,-500.0,9.821e-05,2]
[348656342,1736700656634,-500.0,9.821e-05,2]
[348656343,1736700656644,-502.99251895,9.821e-05,2]
[348656344,1736700656654,-500.0,9.821e-05,2]
[348656345,1736700656663,-756.66,9.821e-05,2]
[348656346,1736700656673,-500.0,9.821e-05,2]
[348656347,1736700656683,-500.0,9.821e-05,2]
[348656348,1736700656692,-527.36,9.821e-05,2]
[348656349,1736700656703,-500.0,9.821e-05,2]
[348656350,1736700656712,-566.83,9.821e-05,2]
[348656351,1736700656722,-500.0,9.821e-05,2]
[348656352,1736700656731,-500.0,9.821e-05,2]
[348656353,1736700656740,-507.66,9.821e-05,2]
[348656354,1736700656750,-500.0,9.821e-05,2]
[348656355,1736700656760,-500.0,9.821e-05,2]
[348656356,1736700656770,-1148.17,9.821e-05,2]
[348656357,1736700656780,-579.59373616,9.821e-05,2]
[348656358,1736700656790,-500.0,9.821e-05,2]
[348656359,1736700656799,-697.58,9.821e-05,2]
[348656360,1736700656809,-500.0,9.821e-05,2]
[348656361,1736700656819,-500.0,9.821e-05,2]
[348656362,1736700656829,-640.34,9.821e-05,2]
[348656363,1736700656839,-1565.32,9.821e-05,2]
[348656364,1736700656849,-500.0,9.821e-05,2]
[348656365,1736700656859,-500.0,9.821e-05,2]
[348656366,1736700656868,-641.6,9.821e-05,2]
[348656367,1736700656878,-500.0,9.821e-05,2]
[348656368,1736700656887,-500.0,9.821e-05,2]
[348656369,1736700656897,-673.33,9.821e-05,2]
[348656370,1736700656907,-500.0,9.821e-05,2]
[348656371,1736700656916,-1691.98,9.821e-05,2]
[348656372,1736700656926,-500.0,9.821e-05,2]
[348656373,1736700656936,-844.22,9.821e-05,2]
[348656374,1736700656946,-995.13,9.821e-05,2]
[348656375,1736700656958,-500.0,9.821e-05,2]
[348656376,1736700656967,-500.0,9.821e-05,2]
[348656377,1736700656977,-500.0,9.821e-05,2]
[348656378,1736700656987,-500.0,9.821e-05,2]
[348656379,1736700656997,-529.26623081,9.821e-05,2]
[348656380,1736700657006,-500.0,9.821e-05,2]
[348656381,1736700657016,-1416.54,9.821e-05,2]
[348656382,1736700657026,-500.0,9.821e-05,2]
[348656383,1736700657035,-500.0,9.821e-05,2]
[348656384,1736700657045,-504.19791603,9.821e-05,2]
[348656385,1736700657054,-500.0,9.821e-05,2]
[348656386,1736700657064,-500.0,9.821e-05,2]
[348656387,1736700657074,-500.0,9.821e-05,2]
[348656388,1736700657083,-500.0,9.821e-05,2]
[348656389,1736700657093,-609.49,9.821e-05,2]
[348656390,1736700657103,-500.0,9.821e-05,2]
[348656391,1736700657116,-535.32,9.821e-05,2]
[348656392,1736700657126,-1156.26,9.821e-05,2]
[348656393,1736700657135,-3288.63,9.821e-05,2]
[348656394,1736700657145,-500.0,9.821e-05,2]
[348656395,1736700657156,-500.0,9.821e-05,2]
[348656396,1736700657165,-951.77,9.821e-05,2]
[348656397,1736700657175,-161.00859388,9.821e-05,2]
[348656398,1736700657185,-500.0,9.821e-05,2]
[348656399,1736700657195,-1332.25,9.821e-05,2]
[348656400,1736700657207,-500.0,9.821e-05,2]
[348656401,1736700657217,-1266.62,9.821e-05,2]
[348656402,1736700657227,-1123.73,9.821e-05,2]
[348656403,1736700657237,-500.0,9.821e-05,2]
[348656404,1736700657247,-500.0,9.821e-05,2]
[348656405,1736700657257,-500.0,9.821e-05,2]
[348656406,1736700657267,-500.0,9.821e-05,2]
[348656407,1736700657278,-500.0,9.821e-05,2]
[348656408,1736700657287,-649.23,9.821e-05,2]
[348656409,1736700657297,-500.0,9.821e-05,2]
[348656410,1736700657307,-3743.22,9.821e-05,2]
[348656411,1736700657318,-500.0,9.821e-05,2]
[348656412,1736700657327,-500.0,9.821e-05,2]
[348656413,1736700657337,-500.0,9.821e-05,2]
[348656414,1736700657347,-681.51,9.821e-05,2]
[348656415,1736700657356,-500.0,9.821e-05,2]
[348656416,1736700657366,-4103.02,9.821e-05,2]
[348656417,1736700657376,-500.0,9.821e-05,2]
[348656418,1736700657385,-505.63855558,9.821e-05,2]
[348656419,1736700657395,-500.0,9.821e-05,2]
[348656420,1736700657405,-527.25,9.821e-05,2]
[348656421,1736700657414,-500.0,9.821e-05,2]
[348656422,1736700657424,-108.7564097,9.821e-05,2]
[348656423,1736700657440,-391.2435903,9.821e-05,2]
[348656424,1736700657451,-471.0723441,9.821e-05,2]
[348656425,1736700657463,-28.9276559,9.821e-05,2]
[348656426,1736700657472,-839.98,9.821e-05,2]
[348656427,1736700657482,-113.54283692,9.821e-05,2]
[348656428,1736700657494,-328.05823,9.821e-05,2]
[348656429,1736700657505,-58.39893308,9.821e-05,2]
[348656430,1736700657515,-590.01,9.821e-05,2]
[348656431,1736700657525,-500.0,9.821e-05,2]
[348656432,1736700657535,-500.0,9.821e-05,2]
[348656433,1736700657545,-2525.06666793,9.821e-05,2]
[348656434,1736700657556,-1041.36333207,9.821e-05,2]
[348656435,1736700657566,-500.0,9.821e-05,2]
[348656436,1736700657575,-2261.67,9.821e-05,2]
[348656437,1736700657585,-500.0,9.821e-05,2]
[348656438,1736700657595,-500.0,9.821e-05,2]
[348656439,1736700657605,-932.25,9.821e-05,2]
[348656440,1736700657615,-500.0,9.821e-05,2]
[348656441,1736700657624,-500.0,9.821e-05,2]
[348656442,1736700657634,-500.0,9.821e-05,2]
[348656443,1736700657644,-661.36,9.859e-05,2]
[348656444,1736700657654,-853.6275293,9.861e-05,2]
[348656445,1736700657663,-438.70958096,9.883e-05,2]
[348656446,1736700657673,-750.02,9.883e-05,2]
[348656447,1736700657683,-802.17,9.883e-05,2]
[348656448,1736700657693,-500.0,9.883e-05,2]
[348656449,1736700657704,-500.0,9.883e-05,2]
[348656450,1736700657713,-534.42,9.883e-05,2]
[348656451,1736700657723,-519.7,9.883e-05,2]
[348656452,1736700657732,-500.0,9.883e-05,2]
[348656453,1736700657742,-871.26,9.883e-05,2]
[348656454,1736700657751,-500.0,9.883e-05,2]
[348656455,1736700657761,-302.82510393,9.883e-05,2]
[348656456,1736700657770,-500.0,9.883e-05,2]
[348656457,1736700657779,-500.0,9.883e-05,2]
[348656458,1736700657789,-500.0,9.883e-05,2]
[348656459,1736700657799,-500.0,9.883e-05,2]
[348656460,1736700657808,-854.85,9.883e-05,2]
[348656461,1736700657818,-513.61363793,9.883e-05,2]
[348656462,1736700657827,-500.0,9.883e-05,2]
[348656463,1736700657837,-500.0,9.883e-05,2]
[348656464,1736700657846,-835.94,9.883e-05,2]
[348656465,1736700657856,-714.45,9.883e-05,2]
[348656466,1736700657866,-588.61,9.883e-05,2]
[348656467,1736700657876,-652.98,9.883e-05,2]
[348656468,1736700657886,-506.37325306,9.883e-05,2]
[348656469,1736700657895,-549.09,9.883e-05,2]
[348656470,1736700657905,-500.0,9.883e-05,2]
[348656471,1736700657916,-747.6945639,9.883e-05,2]
[348656472,1736700657928,-1027.43750262,9.883e-05,2]
[348656473,1736700657940,-1363.68834929,9.883e-05,2]
[348656474,1736700657952,-470.56482525,9.883e-05,2]
[348656475,1736700657963,-1334.47475894,9.883e-05,2]
[348656476,1736700657974,-688.45,9.883e-05,2]
[348656477,1736700657984,-3443.63,9.883e-05,2]
[348656478,1736700657994,-710.84,9.883e-05,2]
[348656479,1736700658004,-500.0,9.883e-05,2]
[348656480,1736700658014,-1074.26,9.883e-05,2]
[348656481,1736700658025,-3653.37,9.883e-05,2]
[348656482,1736700658034,-880.69,9.883e-05,2]
[348656483,1736700658043,-896.33,9.883e-05,2]
[348656484,1736700658053,-1087.03,9.883e-05,2]
[348656485,1736700658062,-255.0,9.897e-05,2]
[348656486,1736700658072,-2819.85066408,9.9e-05,2]
[348656487,1736700658081,-2819.85066389,9.9e-05,2]
[348656488,1736700658090,-2819.85066389,9.9e-05,2]
[348656489,1736700658101,-2819.85066389,9.9e-05,2]
[348656490,1736700658114,-1000.0,9.908e-05,2]
[348656491,1736700658123,-2594.78984519,9.941e-05,2]
[348656492,1736700658133,-251.77744333,9.956e-05,2]
[348656493,1736700658143,-151.8635845,9.956e-05,2]
[348656494,1736700658152,-150.87065605,9.956e-05,2]
[348656495,1736700658161,-152.86923281,9.956e-05,2]
[348656496,1736700658171,-199.71876253,9.956e-05,2]
[348656497,1736700658180,-500.0,9.976e-05,2]
[348656498,1736700658190,-587.23811982,9.977e-05,2]
[348656499,1736700658199,-500.0,9.977e-05,2]
[348656500,1736700658209,-500.59236816,9.977e-05,2]
[348656501,1736700658218,-165.84039268,9.977e-05,2]
[348656502,1736700658228,-500.0,9.979e-05,2]
[348656503,1736700658238,-500.0,9.984e-05,2]
[348656504,1736700658247,-500.0,9.987e-05,2]
[348656505,1736700658260,-486.17413973,9.989e-05,2]
[348656506,1736700658269,-500.0,9.997e-05,2]
[348656507,1736700658279,-500.0,9.997e-05,2]
[348656508,1736700658289,-500.0,9.997e-05,2]
[348656509,1736700658298,-500.0,9.997e-05,2]
[348656510,1736700658308,-500.0,9.997e-05,2]
[348656511,1736700658317,-500.0,9.997e-05,2]
[348656512,1736700658396,-306.07700001,9.997e-05,2]
[348656513,1736700658406,-147226.60522136,0.0001,2]
[348656514,1736700658417,-301.92197159,0.0001,2]
[348656515,1736700658429,-1215.03840664,0.0001,2]
[348656516,1736700658438,-174.84,0.0001,2]
[348656517,1736700658447,-378.77,0.0001,2]
[348656518,1736700658456,-500.0,0.0001,2]
[348656519,1736700658466,-1531.30391016,0.0001,2]
[348656520,1736700658475,-2594.78984546,0.0001,2]
[348656521,1736700658484,-2594.78984519,0.0001,2]
[348656522,1736700658493,-2594.78984519,0.0001,2]
[348656523,1736700658502,-2594.78984519,0.0001,2]
[348656524,1736700658511,-2594.78984519,0.0001,2]
[348656525,1736700658520,-2594.78984519,0.0001,2]
[348656526,1736700658529,-2594.78984519,0.0001,2]
[348656527,1736700658538,-503.74049584,0.0001007,2]
[348656528,1736700658547,-501.96392323,0.0001007,2]
[348656529,1736700658556,-501.49502886,0.0001007,2]
[348656530,1736700658564,-391.41050401,0.0001007,2]
[348656531,1736700658576,-116.01299671,0.0001007,2]
[348656532,1736700658585,-363.30553462,0.0001007,2]
[348656533,1736700658596,-136.69446538,0.0001007,2]
[348656534,1736700658605,-500.0,0.0001007,2]
[348656535,1736700658614,-1647.89,0.0001007,2]
[348656536,1736700658623,-1216.98,0.0001007,2]
[348656537,1736700658632,-1642.15,0.0001007,2]
[348656538,1736700658641,-8570.07,0.0001007,2]
[348656539,1736700658650,-1552.57,0.0001007,2]
[348656540,1736700658659,-2412.19,0.0001007,2]
[348656541,1736700658668,-1676.33,0.0001007,2]
[348656542,1736700658677,-612.31,0.00010071,2]
[348656543,1736700658687,-769.55,0.00010071,2]
[348656544,1736700658695,-851.37,0.00010071,2]
[348656545,1736700658705,-500.0,0.00010071,2]
[348656546,1736700658714,-805.83,0.00010071,2]
[348656547,1736700658723,-710.15,0.00010071,2]
[348656548,1736700658732,-571.57,0.00010071,2]
[348656549,1736700658741,-863.48,0.00010071,2]
[348656550,1736700658751,-500.0,0.00010071,2]
[348656551,1736700658760,-500.0,0.00010071,2]
[348656552,1736700658770,-564.88,0.00010071,2]
[348656553,1736700658779,-531.13115011,0.00010071,2]
[348656554,1736700658788,-500.0,0.00010071,2]
[348656555,1736700658797,-1134.97,0.00010071,2]
[348656556,1736700658807,-719.69,0.00010071,2]
[348656557,1736700658817,-1035.91,0.00010071,2]
[348656558,1736700658826,-500.0,0.00010071,2]
[348656559,1736700658835,-1188.05,0.00010071,2]
[348656560,1736700658846,-500.0,0.00010071,2]
[348656561,1736700658856,-500.0,0.00010071,2]
[348656562,1736700658866,-500.0,0.00010071,2]
[348656563,1736700658875,-500.0,0.00010071,2]
[348656564,1736700658885,-826.63,0.00010071,2]
[348656565,1736700658894,-500.0,0.00010071,2]
[348656566,1736700658903,-500.0,0.00010071,2]
[348656567,1736700658912,-500.0,0.00010071,2]
[348656568,1736700658921,-500.0,0.00010071,2]
[348656569,1736700658931,-1332.99,0.00010071,2]
[348656570,1736700658940,-2129.44,0.00010071,2]
[348656571,1736700658951,-1803.19,0.00010071,2]
[348656572,1736700658960,-921.13,0.00010071,2]
[348656573,1736700658969,-3426.96,0.00010071,2]
[348656574,1736700658979,-5530.95,0.00010071,2]
[348656575,1736700658988,-961.2,0.00010071,2]
[348656576,1736700658997,-2395.68,0.00010071,2]
[348656577,1736700659006,-500.0,0.00010072,2]
[348656578,1736700659015,-1057.87,0.00010072,2]
[348656579,1736700659024,-1317.16,0.00010072,2]
[348656580,1736700659034,-2340.15,0.00010072,2]
[348656581,1736700659043,-765.83,0.00010072,2]
[348656582,1736700659052,-500.0,0.00010072,2]
[348656583,1736700659062,-1000.0,0.00010072,2]
[348656584,1736700659071,-1163.11,0.00010072,2]
[348656585,1736700659080,-500.0,0.00010072,2]
[348656586,1736700659090,-2753.59,0.00010072,2]
[348656587,1736700659099,-1853.45,0.00010072,2]
[348656588,1736700659108,-2594.78984519,0.00010076,2]
[348656589,1736700659120,-738.81,0.00010094,2]
[348656590,1736700659129,-500.0,0.00010094,2]
[348656591,1736700659138,-999.9,0.00010094,2]
[348656592,1736700659148,-658.7,0.00010094,2]
[348656593,1736700659156,-852.49,0.00010094,2]
[348656594,1736700659166,-563.58,0.00010094,2]
[348656595,1736700659175,-500.0,0.00010094,2]
[348656596,1736700659184,-500.0,0.00010094,2]
[348656597,1736700659193,-500.0,0.00010094,2]
[348656598,1736700659205,-690.64,0.00010094,2]
[348656599,1736700659214,-500.0,0.00010094,2]
[348656600,1736700659223,-539.50001,0.00010094,2]
[348656601,1736700659237,-857.17,0.00010094,2]
[348656602,1736700659247,-674.27,0.00010094,2]
[348656603,1736700659257,-500.0,0.00010094,2]
[348656604,1736700659266,-999.58,0.00010094,2]
[348656605,1736700659275,-500.0,0.00010094,2]
[348656606,1736700659284,-690.05,0.00010094,2]
[348656607,1736700659294,-833.44,0.00010094,2]
[348656608,1736700659303,-500.0,0.00010094,2]
[348656609,1736700659314,-988.81,0.00010094,2]
[348656610,1736700659323,-668.15,0.00010094,2]
[348656611,1736700659333,-779.2,0.00010094,2]
[348656612,1736700659342,-500.0,0.00010094,2]
[348656613,1736700659352,-515.74749608,0.00010094,2]
[348656614,1736700659361,-500.0,0.00010094,2]
[348656615,1736700659371,-1054.74,0.00010094,2]
[348656616,1736700659381,-500.0,0.00010094,2]
[348656617,1736700659390,-500.0,0.00010094,2]
[348656618,1736700659399,-748.93,0.00010094,2]
[348656619,1736700659409,-500.0,0.00010094,2]
[348656620,1736700659418,-500.0,0.00010094,2]
[348656621,1736700659427,-500.0,0.00010094,2]
[348656622,1736700659437,-500.0,0.00010094,2]
[348656623,1736700659447,-922.61,0.00010094,2]
[348656624,1736700659458,-500.0,0.00010094,2]
[348656625,1736700659467,-500.0,0.00010094,2]
[348656626,1736700659477,-500.0,0.00010094,2]
[348656627,1736700659487,-584.82,0.00010094,2]
[348656628,1736700659496,-500.0,0.00010094,2]
[348656629,1736700659505,-893.62,0.00010094,2]
[348656630,1736700659514,-1058.98,0.00010094,2]
[348656631,1736700659523,-500.0,0.00010094,2]
[348656632,1736700659533,-2993.24,0.00010094,2]
[348656633,1736700659542,-500.0,0.00010094,2]
[348656634,1736700659551,-500.0,0.00010094,2]
[348656635,1736700659560,-1131.37,0.00010094,2]
[348656636,1736700659569,-2622.41,0.00010094,2]
[348656637,1736700659578,-500.0,0.00010094,2]
[348656638,1736700659587,-715.88,0.00010094,2]
[348656639,1736700659597,-8282.98,0.00010094,2]
[348656640,1736700659607,-838.98,0.00010094,2]
[348656641,1736700659617,-675.17,0.00010094,2]
[348656642,1736700659628,-776.6,0.00010094,2]
[348656643,1736700659638,-500.0,0.00010094,2]
[348656644,1736700659648,-903.59,0.00010094,2]
[348656645,1736700659658,-500.0,0.00010094,2]
[348656646,1736700659667,-1097.27,0.00010094,2]
[348656647,1736700659677,-612.54,0.00010094,2]
[348656648,1736700659688,-565.39,0.00010094,2]
[348656649,1736700659698,-2321.77,0.00010094,2]
[348656650,1736700659708,-1025.55,0.00010094,2]
[348656651,1736700659717,-500.0,0.00010094,2]
[348656652,1736700659727,-2541.58,0.00010094,2]
[348656653,1736700659736,-500.0,0.00010094,2]
[348656654,1736700659746,-995.77,0.00010094,2]
[348656655,1736700659757,-3146.03,0.00010094,2]
[348656656,1736700659768,-2710.65,0.00010094,2]
[348656657,1736700659779,-500.0,0.00010094,2]
[348656658,1736700659789,-1355.79,0.00010094,2]
[348656659,1736700659799,-2113.09,0.00010094,2]
[348656660,1736700659810,-1050.88,0.00010094,2]
[348656661,1736700659819,-1415.81,0.00010094,2]
[348656662,1736700659830,-520.74,0.00010094,2]
[348656663,1736700659839,-1033.91,0.00010094,2]
[348656664,1736700659848,-1645.06,0.00010094,2]
[348656665,1736700659859,-500.0,0.00010094,2]
[348656666,1736700659868,-1289.53,0.00010094,2]
[348656667,1736700659877,-836.1,0.00010094,2]
[348656668,1736700659887,-969.41,0.00010094,2]
[348656669,1736700659897,-500.0,0.00010094,2]
[348656670,1736700659908,-3093.34,0.00010094,2]
[348656671,1736700659917,-594.39,0.00010094,2]
[348656672,1736700659927,-856.24,0.00010094,2]
[348656673,1736700659938,-2376.04,0.00010094,2]
[348656674,1736700659948,-500.0,0.00010094,2]
[348656675,1736700659959,-524.5,0.00010094,2]
[348656676,1736700659968,-1899.09,0.00010094,2]
[348656677,1736700659977,-708.5,0.00010094,2]
[348656678,1736700659987,-1088.98,0.00010094,2]
[348656679,1736700659997,-500.0,0.00010094,2]
[348656680,1736700660007,-500.0,0.00010094,2]
[348656681,1736700660017,-1299.49,0.00010094,2]
[348656682,1736700660027,-640.31,0.00010094,2]
[348656683,1736700660036,-925.99,0.00010094,2]
[348656684,1736700660046,-622.45,0.00010094,2]
[348656685,1736700660056,-3185.36,0.00010094,2]
[348656686,1736700660066,-1827.76,0.00010094,2]
[348656687,1736700660075,-606.95,0.00010094,2]
[348656688,1736700660085,-545.89,0.00010094,2]
[348656689,1736700660095,-786.14,0.00010094,2]
[348656690,1736700660104,-833.22,0.00010094,2]
[348656691,1736700660115,-1861.57,0.00010094,2]
[348656692,1736700660124,-500.0,0.00010095,2]
[348656693,1736700660134,-500.0,0.00010095,2]
[348656694,1736700660143,-513.17635972,0.00010095,2]
[348656695,1736700660152,-730.13,0.00010095,2]
[348656696,1736700660161,-500.0,0.00010095,2]
[348656697,1736700660171,-1651.99,0.00010095,2]
[348656698,1736700660180,-500.0,0.00010095,2]
[348656699,1736700660190,-1264.25,0.00010095,2]
[348656700,1736700660200,-978.875677,0.00010095,2]